Cogmind - Beta 14 @@@ ROGUE MODE // 2024.12.28 @ 09:23:58 Player: Fazzonamite Result: Destroyed by G-47 Trooper with Particle Gun Performance ------------- Evolutions (1) 500 Regions Visited (6) 1200 Robots Destroyed (69) 345 Value Destroyed (1704) 1704 Prototype IDs (25) 500 Alien Tech Used (0) 0 Bonus (509) 509 TOTAL SCORE: 4758 Bonus ------- High Alert Combat Kills 83 Follower Combat Kills 137 Aligned with FarCom 300 Friendly Fire -11 Cogmind --------- Core Integrity 0/400 Matter 161/300 Energy 160/160 System Corruption 0% Temperature Hot (286) Movement Rolling (135) Ox3 Location -8/Mines Parts ------- > --- POWER (1) -------- Light Nuclear Core > --- PROPULSION (2) --- Armored Wheel > --- UTILITY (4) ------ Large Storage Unit Signal Interpreter Core Shielding Hardened Medium Armor Plating > --- WEAPON (2) ------- Heavy Assault Rifle Shotgun > --- INVENTORY (15) --- Wheel Heat Sink Structural Scanner Sensor Array Improved Terrain Scanner Seismic Detector 0b10 Alert Chip Hardened Light Armor Plating Hardened Medium Armor Plating Datajack Peak State ------------ > --- POWER ------------ Light Nuclear Core > --- PROPULSION ------- Wheel Armored Wheel > --- UTILITY ---------- Medium Storage Unit Terrain Scan Processor Hardened Light Armor Plating Hardened Medium Armor Plating > --- WEAPON ----------- Shotgun Heavy Battle Rifle > --- INVENTORY -------- Wheel Heat Sink Structural Scanner Sensor Array Signal Interpreter Improved Terrain Scanner Seismic Detector Hardened Medium Armor Plating Grenade Launcher Datajack [Rating: 21] Favorites ----------- Power Light Nuclear Core Engine Reinforced Ion Engine Power Core Light Nuclear Core Propulsion Wheel Wheel Wheel Utility Medium Storage Unit Device Seismic Detector Storage Medium Storage Unit Processor Terrain Scan Processor Protection Light Armor Plating Weapon Light Assault Rifle Energy Gun Medium Laser Energy Cannon Beam Cannon Ballistic Gun Light Assault Rifle Launcher Grenade Launcher Build | -11 -10 -10 -9 -9 -9 -8 ------- Run | Yrd Mat Min Mat Min Exi Min Slots Evolved 2 | . . . 2 . . . Power . | . . . . . . . Propulsion . | . . . . . . . Utility 2 | . . . 2 . . . Weapon . | . . . . . . . Parts Attached 78 | 8 5 6 43 11 1 4 Power 6 | 1 1 . 4 . . . Engine 5 | 1 1 . 3 . . . Core 1 | . . . 1 . . . Reactor . | . . . . . . . Propulsion 14 | 3 2 1 6 2 . . Treads . | . . . . . . . Leg . | . . . . . . . Wheel 14 | 3 2 1 6 2 . . Hover . | . . . . . . . Flight . | . . . . . . . Utility 34 | 2 2 1 19 6 1 3 Device 16 | 2 . 1 10 3 . . Storage 3 | . 2 . . . 1 . Processor 3 | . . . 1 2 . . Hackware . | . . . . . . . Protection 12 | . . . 8 1 . 3 Artifact . | . . . . . . . Weapon 24 | 2 . 4 14 3 . 1 Energy Gun 7 | 1 . 1 5 . . . Energy Cannon 2 | . . 1 1 . . . Ballistic Gun 11 | 1 . 2 5 2 . 1 Ballistic Cannon . | . . . . . . . Launcher 4 | . . . 3 1 . . Special Weapon . | . . . . . . . Impact Weapon . | . . . . . . . Slashing Weapon . | . . . . . . . Piercing Weapon . | . . . . . . . Special Melee Weapon . | . . . . . . . Unidentified Prototypes . | . . . . . . . Parts Lost 11 | . 2 . 7 . . 2 Power 1 | . 1 . . . . . Propulsion 5 | . 1 . 3 . . 1 Utility 3 | . . . 2 . . 1 Weapon 2 | . . . 2 . . . Highest Loss Streak 3 | . 2 . 3 . . 1 To Critical Strikes . | . . . . . . . Average Slot Usage (%) 99 | . 99 100 97 100 100 97 Engine 8 | . 14 14 10 . . . Core 3 | . . . . 11 11 11 Wheel 23 | . 27 28 20 22 22 22 Device 11 | . 14 14 12 7 11 . Storage 11 | . 13 14 11 11 11 11 Processor 9 | . . . 10 12 22 11 Protection 5 | . . . 8 13 . 22 Energy Gun 6 | . 14 7 8 . . . Energy Cannon 1 | . . 6 2 1 . . Ballistic Gun 14 | . 14 14 9 20 22 19 Peak Build Rating 21 | 9 9 8 20 21 19 21 Average Rating 14 | 4 7 8 15 19 18 18 On Entrance 11 | . 9 8 8 19 18 19 Naked Turns . | . . . . . . . Heaviest Build 44 | 8 19 20 35 35 33 44 Greatest Support 28 | 26 26 26 26 28 28 28 Greatest Overweight (x) 10 | . 1 . 10 1 1 1 Average Overweight (x) . | . . . . . . 1 Largest Inventory Capacity 15 | 5 10 10 10 10 15 15 Average Capacity 10 | 5 8 10 10 10 11 15 Most Carried 11 | 5 10 10 10 10 11 11 Average Carried 9 | 3 8 9 9 9 10 10 Final Capacity 15 | 5 10 10 10 10 15 15 Final Carried 11 | 5 10 10 10 10 11 10 Class Distribution -------------------- 86% | Scavenger-Mutant 9% | Mutant 4% | Scavenger-Skirmisher Dominant Class ---------------- Scavenger-Mutant | -10/Materials Scavenger-Mutant | -10/Mines Scavenger-Mutant | -9/Materials Scavenger-Mutant | -9/Mines Scavenger-Mutant | -9/Exiles Scavenger-Mutant | -8/Mines Resources | -11 -10 -10 -9 -9 -9 -8 ----------- Run | Yrd Mat Min Mat Min Exi Min Matter Collected 1442 | 269 100 60 657 356 . . Remotely . | . . . . . . . Salvage Created 2351 | 122 294 114 1354 400 . 67 Parts 148 | 10 14 6 89 24 . 5 Haulers Intercepted 3 | . 1 . 2 . . . Recyclers Shooed . | . . . . . . . Parts Field Recycled . | . . . . . . . Retrieved Matter . | . . . . . . . Parts Self-Destructed . | . . . . . . . Prevented . | . . . . . . . Kills | -11 -10 -10 -9 -9 -9 -8 ------- Run | Yrd Mat Min Mat Min Exi Min Combat Hostiles Destroyed 53 | . 5 2 32 12 . 2 Guns 33 | . 5 2 16 8 . 2 Cannons 8 | . . . 6 2 . . AOE 12 | . . . 10 2 . . Classes Destroyed 12 | 2 6 . 3 . . 1 Builder 2 | . 1 1 . . . . Tunneler 4 | 2 . . 2 . . . Hauler 3 | . 1 . 2 . . . Recycler 2 | 1 . . . 1 . . Mechanic 1 | . 1 . . . . . Operator 2 | . . . 2 . . . Watcher 4 | . 1 . 3 . . . Swarmer 13 | . 2 . 4 7 . . Grunt 33 | . 3 2 24 3 . 1 Brawler 3 | . . . 1 2 . . Duelist 1 | . . . . . . 1 Sentry 3 | . . . 3 . . . Best Kill Streak 8 | 2 3 2 8 3 . 2 Combat Bots Only 7 | . 3 2 7 3 . 2 Max Kills in Single Turn 4 | 1 1 1 4 2 . 1 Gunslinging . | . . . . . . . Exploded 3 | . . . 3 2 . . Melee . | . . . . . . . Uniques/NPCs Destroyed . | . . . . . . . Combat | -11 -10 -10 -9 -9 -9 -8 -------- Run | Yrd Mat Min Mat Min Exi Min Hostile Shots Fired 271 | . 25 18 144 27 . 57 Missed 63 | . 6 7 31 10 . 9 Damage Taken 3023 | . 221 128 1572 215 . 887 Core 466 | . 28 29 262 41 . 106 Absorbed by Shields . | . . . . . . . Redirected to Shielding 15 | . . . . . . 15 Core Remaining (%) 88 | 100 . 77 . . . . Volleys Fired 200 | 5 44 10 102 23 2 14 Largest 2 | 2 2 2 2 2 1 2 Hottest 130 | 70 70 70 130 79 33 56 Shots Fired 378 | 10 88 20 194 41 2 23 Gun 345 | 10 88 20 167 35 2 23 Cannon 24 | . . . 19 5 . . Launcher 9 | . . . 8 1 . . Special . | . . . . . . . Kinetic 209 | 5 44 10 90 35 2 23 Thermal 153 | 5 44 10 94 . . . Explosive 9 | . . . 8 1 . . Electromagnetic 7 | . . . 2 5 . . Robot Hit Streak 17 | 7 11 17 8 7 . 13 Robot Miss Streak 5 | . 3 5 5 4 . 2 Penetration Max . | . . . . . . . Secondary Targets 6 | . 2 1 2 . . 1 Max Gunslinging Chain 1 | . 1 1 1 . . 1 Shots Hit Robots 233 | 7 59 11 108 27 . 21 Core Hits 122 | 5 22 8 59 18 . 10 Critical Kills . | . . . . . . . Critical Parts Destroyed 1 | . . . 1 . . . Critical Strikes 9 | 1 5 . 3 . . . Burn 8 | 1 5 . 2 . . . Destroy 1 | . . . 1 . . . Melee Attacks . | . . . . . . . Impact . | . . . . . . . Slashing . | . . . . . . . Piercing . | . . . . . . . Sneak Attacks . | . . . . . . . Combat Hostiles . | . . . . . . . Follow-up Attacks . | . . . . . . . Damage Inflicted 4036 | 85 606 128 2219 587 . 411 Guns 3087 | 85 606 128 1475 382 . 411 Cannons 316 | . . . 215 101 . . Explosions 627 | . . . 529 98 . . Melee . | . . . . . . . Ramming 6 | . . . . 6 . . Kinetic 1736 | 22 245 31 645 382 . 411 Thermal 1543 | 63 361 97 1022 . . . Explosive 627 | . . . 529 98 . . Electromagnetic 124 | . . . 23 101 . . Impact . | . . . . . . . Slashing . | . . . . . . . Piercing . | . . . . . . . Highest Corruption . | . . . . . . . Average Corruption . | . . . . . . . Corruption Purged . | . . . . . . . Corruption Blocked . | . . . . . . . Overload Shots . | . . . . . . . Overflow Damage . | . . . . . . . Projectiles . | . . . . . . . Explosions . | . . . . . . . Melee . | . . . . . . . Knockbacks . | . . . . . . . Impact . | . . . . . . . Kinetic . | . . . . . . . Secondary . | . . . . . . . Self-Inflicted Damage 81 | . . . 78 3 . . Shots 4 | . . . 4 . . . Rammed 1 | . . . . 1 . . Targets Rammed 1 | . . . . 1 . . Kicked . | . . . . . . . Crushed . | . . . . . . . Highest Temperature 350 | 60 294 136 350 237 . 277 Average Temperature 99 | 27 79 59 110 87 . 141 Received Heat Transfer 1314 | . 129 66 696 54 . 369 Effects 3 | . . . 3 . . . Energy Bleed 1 | . . . 1 . . . Interference 2 | . . . 2 . . . Siege Activations . | . . . . . . . Robots Corrupted . | . . . . . . . Combat Hostiles . | . . . . . . . Parts Fried . | . . . . . . . Impact Corruptions . | . . . . . . . Robots Melted . | . . . . . . . Combat Hostiles . | . . . . . . . Parts Melted 8 | 1 5 . 2 . . . Heat Transferred 4256 | 259 1443 260 2294 . . . Parts Sabotaged . | . . . . . . . Parts Stolen . | . . . . . . . Parts Stripped . | . . . . . . . Power Chain Reactions . | . . . . . . . Alert | -11 -10 -10 -9 -9 -9 -8 ------- Run | Yrd Mat Min Mat Min Exi Min Peak Influence 545 | 15 215 143 545 436 . 50 Initial 168 | . 9 10 . 168 . . Average 233 | 6 91 88 338 307 . 23 Maximum Alert Level 2 | . 1 . 2 2 . . Low Security (%) 45 | 100 93 100 14 9 . 100 Level 1 36 | . 6 . 47 82 . . Level 2 17 | . . . 37 8 . . Level 3 . | . . . . . . . Level 4 . | . . . . . . . Level 5 . | . . . . . . . High Security . | . . . . . . . Max Security . | . . . . . . . Squads Dispatched 6 | . . . 6 . . . Investigation 4 | . . . 4 . . . Extermination . | . . . . . . . Reinforcement 2 | . . . 2 . . . Assault . | . . . . . . . Garrison . | . . . . . . . Intercept . | . . . . . . . Searches Triggered . | . . . . . . . Construction Impeded . | . . . . . . . Haulers Reinforced . | . . . . . . . Active Scanning Responses . | . . . . . . . Cargo Convoy Interrupts . | . . . . . . . Stealth | -11 -10 -10 -9 -9 -9 -8 --------- Run | Yrd Mat Min Mat Min Exi Min Distress Signals 5 | . 1 . 4 . . . Communications Jammed . | . . . . . . . Distress Signals . | . . . . . . . Times Spotted 93 | . 17 5 52 13 . 6 Peak Tracking Total 9 | . 4 3 9 3 . 5 Tactical Retreats 4 | . 1 . 1 2 . . Traps | -11 -10 -10 -9 -9 -9 -8 ------- Run | Yrd Mat Min Mat Min Exi Min Traps Triggered 3 | . . . 3 . . . Indirectly . | . . . . . . . Trap Hack Attempts . | . . . . . . . Triggered . | . . . . . . . Disarmed 6 | . 6 . . . . . Reprogrammed . | . . . . . . . Reused . | . . . . . . . Traps Extracted . | . . . . . . . Installed . | . . . . . . . Triggered . | . . . . . . . Machines | -11 -10 -10 -9 -9 -9 -8 ---------- Run | Yrd Mat Min Mat Min Exi Min Machines Disabled . | . . . . . . . Max in Single Turn . | . . . . . . . Machines Repaired . | . . . . . . . Machines Dismantled . | . . . . . . . Machines Sabotaged . | . . . . . . . Overloaded Fab Kills . | . . . . . . . Hacking | -11 -10 -10 -9 -9 -9 -8 --------- Run | Yrd Mat Min Mat Min Exi Min Machines Accessed 14 | . 5 . 8 . 1 . Terminals 12 | . 4 . 8 . . . Fabricators . | . . . . . . . Repair Stations . | . . . . . . . Recycling Units 1 | . 1 . . . . . Scanalyzers . | . . . . . . . Garrison Access . | . . . . . . . Total Hacks 36 | . 12 . 23 . 1 . Successful 24 | . 10 . 13 . 1 . Failed 12 | . 2 . 10 . . . Catastrophic 1 | . . . 1 . . . Database Lockouts . | . . . . . . . Manual 23 | . 8 . 14 . 1 . Terminals 34 | . 11 . 23 . . . Fabricators . | . . . . . . . Repair Stations . | . . . . . . . Recycling Units 1 | . 1 . . . . . Scanalyzers . | . . . . . . . Garrison Access . | . . . . . . . Terminal Hacks 12 | . 4 . 7 . 1 . Prototype ID Bank 1 | . . . 1 . . . Branch Access Points 2 | . 1 . 1 . . . Emergency Access Points 1 | . 1 . . . . . Alert Level 4 | . . . 4 . . . Unreport Threat 2 | . 1 . 1 . . . Disarm Traps 1 | . 1 . . . . . Derelict Proto ID Bank 1 | . . . . . 1 . Fabricator Hacks . | . . . . . . . Repair Station Hacks . | . . . . . . . Recycling Unit Hacks 1 | . 1 . . . . . Report Inventory 1 | . 1 . . . . . Scanalyzer . | . . . . . . . Garrison Access Hacks . | . . . . . . . Unauthorized Hacks 11 | . 5 . 6 . . . Terminals 11 | . 5 . 6 . . . Botnet 10 | . 4 . 6 . . . Operators 1 | . 1 . . . . . Fabricators . | . . . . . . . Repair Stations . | . . . . . . . Recycling Units . | . . . . . . . Scanalyzers . | . . . . . . . Garrison Access . | . . . . . . . Data Cores Recovered 1 | . . . 1 . . . Used 1 | . . . 1 . . . Hacking Detections 11 | . 4 . 7 . . . Full Trace Events 1 | . . . 1 . . . Feedback Events . | . . . . . . . Feedback Blocked . | . . . . . . . Robot Schematics Acquired . | . . . . . . . Robots Built . | . . . . . . . Authchips . | . . . . . . . Time . | . . . . . . . Total Robot Build Rating . | . . . . . . . Part Schematics Acquired . | . . . . . . . Parts Built . | . . . . . . . Authchips . | . . . . . . . Time . | . . . . . . . Total Part Build Rating . | . . . . . . . Parts Repaired . | . . . . . . . Time . | . . . . . . . Parts Recycled . | . . . . . . . Recycled Matter . | . . . . . . . Retrieved Matter . | . . . . . . . Retrieved Components . | . . . . . . . Parts Scanalyzed . | . . . . . . . Part Schematics Acquired . | . . . . . . . Parts Damaged . | . . . . . . . Bothacking | -11 -10 -10 -9 -9 -9 -8 ------------ Run | Yrd Mat Min Mat Min Exi Min Used RIF Installer . | . . . . . . . Robots Hacked . | . . . . . . . Non-combat . | . . . . . . . Combat . | . . . . . . . Robot Hacks Applied . | . . . . . . . Relay Couplers Released . | . . . . . . . Fabnet Peak Effective % . | . . . . . . . Robots Rewired . | . . . . . . . Allies Hacked . | . . . . . . . Hacks Repelled . | . . . . . . . Allies | -11 -10 -10 -9 -9 -9 -8 -------- Run | Yrd Mat Min Mat Min Exi Min Total Allies 5 | . . 5 . . . . Largest Group 5 | . . 5 5 . . . Highest-Rated Group 81 | . . 81 81 . . . Highest-Rated Ally 31 | . . 31 31 . . . Total Orders 1 | . . . 1 . . . STAY 1 | . . . 1 . . . Ally Attacks 43 | . . 4 39 . . . Total Damage 458 | . . 84 374 . . . Kills 7 | . . 3 4 . . . Allies Corrupted . | . . . . . . . Allies Melted . | . . . . . . . Intel | -11 -10 -10 -9 -9 -9 -8 ------- Run | Yrd Mat Min Mat Min Exi Min Robot Analysis Total . | . . . . . . . Derelict Logs Recovered 1 | . . 1 . . . . Drone Launches . | . . . . . . . Drone Recoveries . | . . . . . . . Exploration | -11 -10 -10 -9 -9 -9 -8 ------------- Run | Yrd Mat Min Mat Min Exi Min Turns Passed 3432 | 78 527 463 1241 512 568 43 Spaces Moved 2577 | 50 377 449 739 401 560 1 Core 17 | 8 . . 9 . . . Treads . | . . . . . . . Legs . | . . . . . . . Wheels 2560 | 42 377 449 730 401 560 1 Hover . | . . . . . . . Flight . | . . . . . . . Fastest Speed 50 | 50 80 90 90 95 95 110 Average Speed 96 | 82 86 90 101 102 100 110 Slowest Speed 550 | 90 95 90 550 110 110 110 Overloaded Moves . | . . . . . . . Propulsion Burnouts . | . . . . . . . Robots Hopped . | . . . . . . . Cave-ins Triggered . | . . . . . . . Exploration Rate (%) 47 | 4 48 88 66 54 70 5 Regions Visited 6 Branch Regions 4 Pre-discovered Areas . | . . . . . . . Known Exits Taken 4 | . 1 . 1 1 1 . Unknown Exits Taken 2 | 1 . 1 . . . . Scrap Searched 3 | . . 3 . . . . Spaces Dug 6 | . . . 6 . . . Terrain Destroyed 52 | . . . 44 8 . . Melee . | . . . . . . . Projectile 1 | . . . . 1 . . AOE 51 | . . . 44 7 . . Terrain Rammed . | . . . . . . . Walls Destroyed . | . . . . . . . Machines Disabled . | . . . . . . . Actions | -11 -10 -10 -9 -9 -9 -8 --------- Run | Yrd Mat Min Mat Min Exi Min Total 3157 | 78 496 490 1048 459 566 20 Wait 216 | 3 62 17 117 17 . . Move 2571 | 49 376 448 738 400 559 1 Hop . | . . . . . . . Pick Up 50 | 12 8 3 23 1 2 1 Fast Attach 9 | . . 1 5 3 . . Attach 21 | 7 2 . 10 . . 2 Detach . | . . . . . . . Swap 48 | 1 3 5 28 8 1 2 Drop 41 | 1 1 6 25 6 2 . Fire 200 | 5 44 10 102 23 2 14 Melee . | . . . . . . . Ram 1 | . . . . 1 . . Kick . | . . . . . . . Crush . | . . . . . . . Escape Stasis . | . . . . . . . Rewire . | . . . . . . . Trap . | . . . . . . . Miscellaneous . | . . . . . . . Route ------- -11/Scrapyard -10/Materials (discovered 3 exits: *Mat / *Min x2) -10/Mines (discovered 2 exits: *Mat x2) -9/Materials (discovered 3 exits: [*Mat x2] / *Min) -9/Mines (discovered 3 exits: [*Mat] / *Exi / *Zio) -9/Exiles -8/Mines History --------- Turn | Location | Event 17 | -11/Scrapyard | Discovered new exit (range 15) 79 | -11/Scrapyard | Entered Materials 128 | -10/Materials | Discovered new exit (range 5) 314 | -10/Materials | Build established: Mutant 468 | -10/Materials | Discovered new exit (range 10) 590 | -10/Materials | Identified exit to Mines 606 | -10/Materials | Entered Mines 649 | -10/Mines | Build established: Scavenger-Mutant 901 | -10/Mines | Learned Materials interactive machine intel 941 | -10/Mines | Discovered new exit (range 4) 1040 | -10/Mines | Discovered new exit (range 16) 1057 | -10/Mines | Assisted by bots powering up and referring to "LRC-V3" 1069 | -10/Mines | Entered Materials 1069 | -9/Materials | Accompanied by 5 allies 1069 | -9/Materials | Evolved 2 slots: Utility x2 1070 | -9/Materials | Loaded intel: 18 interactive machine locations 1074 | -9/Materials | Led the pair of lost Derelicts to an unsafe place 1320 | -9/Materials | Lost 3 allies 1372 | -9/Materials | Discovered new exit (range 3) 1544 | -9/Materials | Lost 3 parts (2n1u) 1694 | -9/Materials | Identified exit to Mines 1894 | -9/Materials | Core integrity fell below 50% 1924 | -9/Materials | Destroyed 7 combat bots 2167 | -9/Materials | Discovered new exit (range 12) 2310 | -9/Materials | Entered Mines 2337 | -9/Mines | Met a Derelict bent on vengeance 2364 | -9/Mines | A weapon hastily lodged in a ceiling crevice suddenly fell to the ground 2384 | -9/Mines | Discovered new exit (range 10) 2612 | -9/Mines | Joined a pair of Derelicts in attacking an 0b10 outpost 2757 | -9/Mines | A Derelict revealed a hidden shortcut to a safe place 2764 | -9/Mines | Identified exit to Zion 2818 | -9/Mines | Deemed a non-threat by the Exiles lab entrance 2818 | -9/Mines | Discovered new exit (range 5) 2821 | -9/Mines | Identified exit to Exiles 2822 | -9/Mines | Entered Exiles 2837 | -9/Exiles | Discovered new exit (range 15) 2849 | -9/Exiles | Identified exit to Mines 2867 | -9/Exiles | Met 8R-AWN 2883 | -9/Exiles | Met EX-HEX 2917 | -9/Exiles | Met EX-BIN 2929 | -9/Exiles | Aligned with FarCom system 2930 | -9/Exiles | Given EX-Vault access code 2953 | -9/Exiles | Opened EX-Vault 2959 | -9/Exiles | Found 0b10 Alert Chip 2980 | -9/Exiles | Warned to stay clear of 0b10 Research branches 3006 | -9/Exiles | Met EX-DEC 3064 | -9/Exiles | Visited The Gauntlet 3390 | -9/Exiles | Left Exiles lab with 0b10 Alert Chip 3390 | -9/Exiles | Entered Mines 3403 | -8/Mines | Core integrity fell below 20% 3433 | -8/Mines | Destroyed by G-47 Trooper with Particle Gun Last Messages --------------- chain! 03008_ EX-DEC: "Oops, I hope HEX didn't hear that..." 03179_ Dropped Med. Storage Unit. 03278_ Acquired Imp. Terrain Scanner. LOCATION=MINES GOAL=ESCAPE 03390_ Receiving FarCom transmissions... 03391_ C-30 ARC bursts open, deploying its payload. 03391_ L-31 Rogue unfolds itself. 03391_ G-47 Trooper unfolds itself. 03394_ Imp. Targeting Computer destroyed. 03402_ Hvy. Battle Rifle severed. 03408_ L-31 Rogue destroyed. 03411_ Acquired Core Shielding. 03420_ G-47 Trooper destroyed. 03420_ Switching to secondary target: G-47 Trooper. 03432_ Com. Wheel destroyed. Map ----- +----------------------------------------------------+ | ?????????????????????????????????? | | ?????????????????????????????????? | | ?????????????????????????????????? | | ?????????????????????????????????? | | ?????????????????????????????????? | | ?????????????????????????????????? | | ?????????????????????????????????? | | ?????????????????????????????????? | | ?????????????????????????????????? | | ?????????????????????????????????? | | ?????????????????????????????????? | | ?????????????????????????????????? | | ?????????????????????????????????? | | ?????????????????????????????????? | | ?????????????????????????????????? | | ?????????????????????????????????? | | ?????????????????????????????????? | | ?????????????????????????????????? | | ??????????????????????#??????????? | | ??????????????????????# ?????????? | | ??????????????????????# ?????????? | | ?????????????????????## #######??? | | ?????????????????????# #??? | | ?????????????????????# #??? | | ?????????????????????# #??? | | ?????????????????????# @ #??? | | ?????????????????????# !%[t #??? | | ?????????????????????# g%/% #??? | | ?????????????????????# =[ #??? | | ?????????????????????# g #??? | | ?????????????????????# g #??? | | ?????????????????????#### #####??? | | ???????????????????????? #??????? | | ????????????????????????# #??????? | | ????????????????????????# ???????? | | ???????????????????????? ???????? | | ???????????????????????? ???????? | | ?????????????b?????????? ???????? | | ???????????????????????? ???????? | | ???????????????????????? #???????? | | ????????????????????????#????????? | | ?????????????????????????????????? | | ?????????????????????????????????? | | ?????????????????????????????????? | | ?????????????????????????????????? | | ?????????????????????????????????? | | ?????????????????????????????????? | | ?????????????????????????????????? | | ?????????????????????????????????? | | ?????????????????????????????????? | +----------------------------------------------------+ Best States ------------- Heat Dissipation 42 Energy Generation 14 Energy Capacity 265 Matter Stores 300 Matter Capacity 300 Sight Range 16 Robot Scan Range 14 Terrain Scan Range 16 Terrain Scan Density 85 Armor Coverage 450 Core Shielding 20 Evasion (%) 50 Targeting Accuracy 6 Item Schematics ----------------- None Robot Schematics ------------------ None Fabricated ------------ Nothing Alien Tech Used ----------------- None Achievements -------------- None Challenges ------------ None Game ------ Seed ShockFissionBank Manual? 0 Play Time 01:26:27 Cumulative 102.9 hours Start 2024.12.28 @ 07:46:42 End 2024.12.28 @ 09:23:58 Sessions 1 Manual Loads 0 Difficulty Rogue Special Mode None Game No. 83 Rogue 83 Adventurer 0 Explorer 0 Win Type - Total 0 Types 0/0/0/0/0/0/0/0/0 Lore% 40 Gallery% 45 Achievement% 39 Wizard Run 0 Options --------- Layout 2 ASCII 0 Keyboard 0 Movement Mouse Keybinds 0 Fullscreen 1 Font 48/Smallcaps Map View 50x44 Zoom Use 0% Tactical HUD 1 Map Filters NONE Filters NONE Steam 1 RUN: 70580339-b981-41e7-aac5-2c75a58d0974